bitfinex/quotes_ETHUSD_20220113
["timestamp","ask_amount","ask_price","bid_price","bid_amount"]
[1642088480785,0.3,3307.7,3307.5,1.66536858]
[1642088480987,0.3,3307.7,3307.5,2.66536858]
[1642088481191,0.3,3307.7,3307.5,1.66536858]
[1642088481390,0.3,3307.7,3307.6,1.0]
[1642088481685,0.3,3307.7,3307.4,0.57307848]
[1642088481886,0.3,3307.7,3307.4,0.87534848]
[1642088482486,0.00113684,3307.9,3307.4,0.87534848]
[1642088482686,0.00113684,3307.9,3307.4,0.57307848]
[1642088482938,0.00113684,3307.9,3307.8,4.00222]
[1642088483138,0.00113684,3307.9,3307.8,5.00222]
[1642088484340,0.00113684,3307.9,3307.8,0.30222]
[1642088484539,0.00113684,3307.9,3307.8,1.91183352]
[1642088485140,0.00113684,3307.9,3307.8,1.60961352]
[1642088485740,4.60113684,3307.9,3307.8,1.60961352]
[1642088486139,4.60113684,3307.9,3307.2,0.00284212]
[1642088486140,4.6,3307.8,3307.2,0.00284212]
[1642088486344,0.75584,3307.5,3307.2,0.00284212]
[1642088486588,0.75584,3307.5,3306.9,0.00454739]
[1642088486589,1.18120905,3307.2,3306.9,0.00454739]
[1642088486990,0.6,3307.2,3306.9,0.00454739]
[1642088487190,2.11181,3307.2,3306.9,0.00454739]
[1642088487391,2.60590516,3307.2,3306.9,0.00454739]
[1642088487591,0.77887659,3307.1,3306.7,0.00568424]
[1642088487791,0.81435116,3307.1,3306.7,0.00568424]
[1642088487990,0.3,3307.0,3306.7,0.00568424]
[1642088488191,0.3,3307.0,3306.8,0.61882284]
[1642088488591,0.3,3307.0,3306.9,0.00454739]
[1642088490641,0.3,3307.1,3306.9,0.00454739]
[1642088491139,0.63846964,3307.2,3307.0,0.30233]
[1642088491548,0.63846964,3307.2,3307.1,0.00341054]
[1642088494293,0.63531236,3307.2,3307.1,0.00341054]
[1642088494498,0.00113684,3307.9,3307.1,0.00341054]
[1642088494794,0.3,3307.2,3307.1,0.00341054]
[1642088494994,0.00113684,3307.9,3307.7,0.30227]
[1642088495195,0.75682684,3307.9,3307.7,0.30227]
[1642088495394,0.3,3307.8,3307.7,0.30227]
[1642088495596,0.6,3307.8,3307.7,0.30227]
[1642088495993,0.3,3307.8,3307.7,0.30227]
[1642088496393,0.00113684,3307.9,3307.7,0.30227]
[1642088496598,0.00113684,3307.9,3307.7,0.30826037]
[1642088496795,0.00113684,3307.9,3307.7,0.30227]
[1642088503997,0.00113684,3307.9,3307.6,1.11374724]
[1642088504302,0.75685684,3307.9,3307.6,1.11374724]
[1642088504496,0.6,3307.8,3307.6,1.11374724]
[1642088504696,0.6,3307.8,3307.3,0.7557]
[1642088504896,0.45969,3307.8,3307.4,0.37787]
[1642088505098,0.3,3307.9,3307.4,0.00170527]
[1642088505539,0.75566,3308.2,3307.2,0.00284212]
[1642088505540,1.05566,3308.2,3307.2,0.00284212]
[1642088505739,1.05566,3308.2,3307.5,0.59761338]
[1642088505938,0.00227369,3308.1,3307.5,0.59761338]
[1642088506139,0.00227369,3308.1,3307.6,0.37785]
[1642088506140,0.30227369,3308.1,3307.6,0.37785]
[1642088506340,0.75740527,3308.0,3307.6,0.37785]
[1642088506541,1.09715191,3308.0,3307.5,0.59761338]
[1642088506740,0.00113684,3307.9,3307.5,0.59761338]
[1642088507140,0.00113684,3307.9,3307.8,0.37784]
[1642088507342,0.30113684,3307.9,3307.8,0.37784]
[1642088507541,0.00113684,3307.9,3307.8,0.37784]
[1642088508941,0.00113684,3307.9,3307.8,2.02062838]
[1642088509187,0.3,3308.4,3308.1,0.37779]
[1642088509586,0.30284212,3308.4,3308.1,0.37779]
[1642088509784,1.49102709,3308.2,3308.1,0.37779]
[1642088509988,1.49102709,3308.2,3307.8,1.64278838]
[1642088510186,2.09273236,3308.2,3307.8,1.64278838]
[1642088510391,0.00113685,3308.1,3307.3,1.5393875]
[1642088510687,0.00113685,3308.1,3307.4,0.00284212]
[1642088511087,0.75695685,3308.1,3307.4,0.00284212]
[1642088511289,0.0085517,3308.0,3307.4,0.00284212]
[1642088511496,0.6,3308.0,3307.4,0.00284212]
[1642088511687,0.00113685,3308.1,3307.4,0.00284212]
[1642088512291,1.44572067,3308.0,3307.4,0.00284212]
[1642088512587,0.00489258,3307.8,3307.4,0.00284212]
[1642088512850,0.3,3307.8,3307.4,0.00284212]
[1642088513037,0.3,3307.9,3307.4,0.00284212]
[1642088513437,0.3,3307.9,3307.2,0.00397896]
[1642088513639,0.75577,3307.8,3307.2,0.00397896]
[1642088513838,1.08920402,3307.8,3307.1,0.76029738]
[1642088514038,0.3,3307.7,3307.3,0.46136849]
[1642088514439,0.3,3307.7,3307.4,0.00284211]
[1642088515043,0.3,3307.9,3307.4,0.00284211]
[1642088515241,1.05572,3307.9,3307.4,0.00284211]
[1642088515442,1.0859744,3307.9,3307.4,0.00284211]
[1642088515642,0.3,3307.8,3307.4,0.00284211]
[1642088516884,0.3,3307.8,3307.5,0.37787]
[1642088517084,0.6302544,3307.9,3307.4,0.00284211]
[1642088517288,0.6302544,3307.9,3307.6,0.00170527]
[1642088517484,0.6302544,3307.9,3307.4,0.00284211]
[1642088518186,1.3859744,3307.9,3307.4,0.00284211]
[1642088518385,1.3859744,3307.9,3307.7,0.37785]
[1642088519187,1.3859744,3307.9,3307.8,0.615582]
[1642088519386,0.6302544,3307.9,3307.8,0.615582]
[1642088519588,0.0302544,3307.9,3307.8,0.615582]
[1642088519789,0.00113685,3308.1,3307.8,0.615582]
[1642088519988,0.00113685,3308.1,3308.0,0.37779]
[1642088521936,0.00113685,3308.1,3307.8,0.993422]
[1642088522137,0.75568,3308.1,3307.4,0.00284211]
[1642088522340,0.3,3308.0,3307.9,0.00113685]
[1642088522537,0.3,3308.0,3307.4,0.00397896]
[1642088522938,0.3,3308.1,3307.4,0.00397896]
[1642088523238,0.00770868,3308.1,3307.9,0.37784]
[1642088523439,1.34538661,3308.2,3307.9,0.37784]
[1642088523440,0.79348803,3308.0,3307.9,0.37784]
[1642088523638,1.39348803,3308.0,3307.9,0.37784]
[1642088523837,1.39348803,3308.0,3307.9,0.37897685]
[1642088524384,0.63780803,3308.0,3307.9,0.37897685]
[1642088524585,0.33780803,3308.0,3307.9,0.00113685]
[1642088524890,6.5,3307.9,3307.0,1.5393875]
[1642088525084,0.01556846,3307.8,3307.0,1.5393875]
[1642088525283,7.1,3307.9,3307.1,0.00454738]
[1642088525484,0.7559,3307.5,3307.1,0.00454738]
[1642088525884,1.3559,3307.5,3307.1,0.00454738]
[1642088526283,1.3559,3307.5,3307.0,0.55412579]
[1642088526484,0.3,3307.3,3307.0,0.55412579]
[1642088526684,0.3,3307.3,3307.2,0.37791]
[1642088527084,0.3,3307.3,3307.2,0.38188896]
[1642088527283,0.3,3307.3,3307.2,2.11046571]
[1642088527935,0.3,3307.3,3307.2,1.73255571]
[1642088529238,0.420821,3307.3,3307.2,1.73255571]
[1642088529537,0.720821,3307.3,3307.2,1.73255571]
[1642088529740,0.75689418,3307.3,3307.2,1.73255571]
[1642088529937,0.75689418,3307.3,3306.6,1.5393875]
[1642088529938,0.010074,3307.1,3306.6,1.5393875]
[1642088530144,0.010074,3307.1,3306.3,2.309214]
[1642088530145,6.5,3306.9,3306.3,2.309214]
[1642088530339,17.26715788,3306.7,3306.3,2.309214]
[1642088530537,1.39501847,3306.6,3306.4,0.00170527]
[1642088530738,5.8,3306.4,3306.3,0.82511927]
[1642088530938,3.75,3306.3,3306.1,3.0870741]
[1642088531138,5.24226,3306.3,3306.1,7.41e-05]
[1642088531438,5.24226,3306.3,3305.3,2.33038179]
[1642088531439,5.3,3306.2,3305.3,2.33038179]
[1642088531700,0.436,3306.1,3305.3,2.33038179]
[1642088531898,0.736,3306.1,3305.4,0.00568423]
[1642088532099,0.3,3306.0,3305.4,0.00568423]
[1642088532300,1.49225,3306.0,3305.4,0.00568423]
[1642088532499,2.2485,3306.0,3305.5,0.47110402]
[1642088532900,2.2485,3306.0,3305.6,0.00454739]
[1642088533302,0.01727931,3305.9,3305.6,0.00454739]
[1642088533599,0.75625,3305.8,3305.1,0.0073895]
[1642088533800,0.6,3305.7,3305.4,0.37812]
[1642088534000,0.6,3305.7,3305.1,0.0073895]
[1642088534001,0.6,3305.7,3305.1,0.52850194]
[1642088534200,0.6,3305.7,3305.5,0.00511581]
[1642088534403,0.6,3305.7,3305.2,0.00682108]
[1642088535003,0.6,3305.7,3304.7,7.53544358]
[1642088535207,0.02946617,3305.6,3305.3,0.60050416]
[1642088535441,0.00227369,3305.6,3305.3,0.60050416]
[1642088535642,0.00170527,3305.5,3305.3,0.60050416]
[1642088536041,0.75621,3305.6,3305.4,0.37812]
[1642088536042,1.05621,3305.6,3305.4,0.37812]
[1642088536441,0.00170527,3305.5,3305.4,0.37812]
[1642088536642,0.00170527,3305.5,3305.3,0.60050416]
[1642088537045,0.00113685,3305.4,3305.3,0.60050416]
[1642088538645,0.00113685,3305.4,3305.3,1.35667416]
[1642088539295,0.00113685,3305.4,3304.9,0.00170527]
[1642088540291,0.00113685,3305.4,3304.9,0.59667526]
[1642088540495,0.5,3305.2,3305.0,0.00475401]
[1642088540791,0.5,3305.2,3305.0,0.00113685]
[1642088540792,2.45720866,3305.1,3305.0,0.00113685]
[1642088540994,2.45,3305.1,3305.0,0.00113685]
[1642088541195,0.83687971,3305.2,3304.6,0.00341054]
[1642088541394,0.5,3305.2,3304.6,0.00341054]
[1642088541612,0.5,3305.2,3304.5,0.75636]
[1642088541613,1.25641,3305.2,3305.0,0.02594674]
[1642088541895,2.80539629,3305.2,3305.0,0.02594674]
[1642088542093,0.5,3305.2,3305.0,0.02594674]
[1642088543041,0.5,3305.2,3305.1,0.5325307]
[1642088544039,0.5,3305.2,3305.0,0.40410674]
[1642088544040,0.8,3305.2,3305.0,0.40410674]
[1642088544242,1.1,3305.2,3305.0,0.02594674]
[1642088544439,0.8,3305.2,3305.0,0.02594674]
[1642088544639,1.1,3305.2,3305.0,0.02594674]
[1642088544840,1.1,3305.2,3305.0,0.40410674]
[1642088545241,1.220886,3305.2,3305.0,0.94110135]
[1642088547986,1.220886,3305.2,3305.0,0.84110135]
[1642088548388,1.220886,3305.2,3305.0,0.37816]
[1642088548589,1.220886,3305.2,3304.8,0.75629]
[1642088549491,1.220886,3305.2,3304.6,0.00341054]
[1642088549790,1.220886,3305.2,3304.7,0.3782]
[1642088550191,1.220886,3305.2,3304.8,0.00227369]
[1642088550638,1.220886,3305.2,3304.8,2.19229665]
[1642088550847,1.220886,3305.2,3304.8,2.19002296]
[1642088551039,1.220886,3305.2,3305.1,3.44647622]
[1642088551238,0.620886,3305.2,3305.1,3.44647622]
[1642088552537,0.920886,3305.2,3305.1,3.44647622]
[1642088552738,1.220886,3305.2,3305.1,3.44647622]
[1642088552940,0.920886,3305.2,3305.1,1.88021918]
[1642088553239,1.220886,3305.2,3305.1,1.88021918]
[1642088557099,1.1,3305.2,3305.1,1.88021918]
[1642088559139,0.6,3305.2,3305.1,1.38021918]
[1642088559338,0.3,3305.2,3305.1,1.38021918]
[1642088559537,0.3,3305.3,3305.1,1.38021918]
[1642088559738,0.00113685,3305.4,3305.1,2.51453918]
[1642088559939,0.3,3305.3,3305.1,3.64881998]
[1642088560239,0.00113685,3305.4,3305.2,0.44792819]
[1642088560437,0.30113685,3305.4,3305.2,0.44792819]
[1642088560641,0.00113685,3305.4,3305.2,0.45397301]
[1642088560840,0.00113685,3305.4,3305.3,3.22809]
[1642088561040,0.00113685,3305.4,3305.3,0.37809]
[1642088561692,0.00113685,3305.4,3305.3,1.60996821]
[1642088561893,0.120874,3305.5,3305.4,6.5]
[1642088561894,1.085e-05,3305.5,3305.4,6.5]
[1642088562292,1.085e-05,3305.5,3305.4,6.56597288]
[1642088563295,1.085e-05,3305.5,3305.4,14.06997288]
[1642088563694,1.085e-05,3305.5,3305.4,15.06997288]
[1642088564295,1.085e-05,3305.5,3305.4,15.06897288]
[1642088564896,1.16476982,3305.9,3305.4,15.003]
[1642088565196,1.46476982,3305.9,3305.4,15.38112]
[1642088565446,0.08096525,3305.5,3305.4,15.003]
[1642088566140,0.08096525,3305.5,3305.4,10.1169]
[1642088566543,0.08096525,3305.5,3305.4,8.4323]
[1642088566740,0.08096525,3305.5,3304.6,0.00341054]
[1642088566741,6.5,3305.4,3304.6,0.00341054]
[1642088566940,17.706,3305.3,3304.6,0.00341054]
[1642088567142,0.01283754,3305.0,3304.5,0.00511581]
[1642088568141,0.436,3304.9,3304.5,0.00511581]
[1642088568339,0.436,3304.9,3304.3,0.00625266]
[1642088568539,0.736,3304.9,3304.3,0.00625266]
[1642088568740,0.736,3304.9,3304.3,0.47021978]
[1642088568940,0.736,3304.9,3304.4,0.01171062]
[1642088569195,1.036,3304.9,3304.4,0.00568424]
[1642088569391,1.036,3304.9,3304.5,0.00511581]
[1642088569592,0.02251236,3304.8,3304.3,0.00625266]
[1642088569792,1.036,3304.9,3304.3,0.00625266]
[1642088569991,0.0084086,3304.8,3304.0,0.00795793]
[1642088570191,1.36402465,3304.8,3304.0,0.00795793]
[1642088570393,2.25263923,3304.8,3304.1,0.43722449]
[1642088570794,2.19986535,3304.8,3304.2,0.00682109]
[1642088571192,2.19986535,3304.8,3304.3,0.00888089]
[1642088571193,2.28696964,3304.8,3304.3,0.00888089]
[1642088571418,1.036,3304.9,3304.3,0.00888089]
[1642088571594,2.22853539,3304.8,3304.4,0.00568424]
[1642088572092,0.02773006,3304.7,3304.3,0.00625266]
[1642088572592,0.02773006,3304.7,3304.1,0.00738951]
[1642088573039,2.20942946,3304.8,3304.1,0.00738951]
[1642088573638,2.20942946,3304.8,3304.0,0.00795793]
[1642088573840,19.47942946,3304.8,3304.0,0.00795793]
[1642088574039,2.22995128,3304.7,3304.0,0.00795793]
[1642088574441,2.82995128,3304.7,3304.0,0.00795793]
[1642088575341,0.01288877,3304.4,3304.0,0.00795793]
[1642088575739,0.01288877,3304.4,3303.6,0.01023163]
[1642088576341,0.01288877,3304.4,3303.6,0.46423163]
[1642088576589,0.00249168,3304.4,3303.6,0.01023163]
[1642088576790,0.00249168,3304.4,3303.7,0.0096632]
[1642088577094,0.00249168,3304.4,3303.6,0.01023163]
[1642088577390,0.01339662,3304.3,3303.6,0.01023163]
[1642088577590,17.87249168,3304.4,3303.6,0.01023163]
[1642088577790,17.27,3304.2,3303.6,0.01023163]
[1642088578091,19.53040031,3304.1,3303.6,0.01023163]
[1642088578294,2.22388214,3304.0,3303.6,0.01023163]
[1642088578601,1.49287,3304.0,3303.6,0.01023163]
[1642088578790,0.736,3304.0,3303.6,0.01023163]
[1642088578990,0.736,3304.0,3303.1,0.01307374]
[1642088578991,17.27,3303.9,3303.1,0.01307374]
[1642088579190,17.27,3303.6,3303.1,0.01307374]
[1642088579393,17.57,3303.6,3303.1,0.01307374]
[1642088579594,17.87,3303.6,3303.1,0.01307374]
[1642088580369,17.87,3303.6,3303.2,1.49702544]
[1642088580658,17.87,3303.6,3303.3,0.0119369]
[1642088581060,0.6,3303.6,3303.3,0.0119369]
[1642088581263,0.6,3303.6,3303.4,0.04303753]
[1642088581462,0.6,3303.6,3303.3,0.0119369]
[1642088581463,0.3,3303.6,3303.3,0.00497443]
[1642088581669,17.90240073,3303.9,3303.5,0.01080005]
[1642088581865,17.90240073,3303.9,3303.4,1.49702544]
[1642088582064,17.90240073,3303.9,3303.5,0.00383758]
[1642088582867,17.90240073,3303.9,3303.6,1.49702544]
[1642088583263,17.90240073,3303.9,3303.7,0.00270073]
[1642088583863,0.63240073,3303.9,3303.7,0.5087292]
[1642088584094,7.3e-07,3303.9,3303.7,0.5087292]
[1642088584294,0.436,3305.2,3303.8,4.35063231]
[1642088584491,0.436,3305.2,3304.7,0.75643]
[1642088584795,0.436,3305.6,3303.9,1.00156389]
[1642088584990,2.31545826,3305.5,3304.1,0.7564598]
[1642088585190,1.3891135,3305.4,3304.7,0.55155683]
[1642088585395,2.23038363,3305.3,3304.7,0.55155683]
[1642088585591,0.00639404,3305.3,3304.7,0.55155683]
[1642088585793,0.00582562,3305.2,3304.7,0.55155683]
[1642088586194,0.0052572,3305.1,3304.7,0.55155683]
[1642088586595,0.00468877,3305.0,3304.7,0.55155683]
[1642088586994,0.00412035,3304.9,3304.7,0.55155683]
[1642088587397,2.95355193,3304.8,3304.7,0.55155683]
[1642088587592,2.95355193,3304.8,3304.4,0.45387]
[1642088587849,3.55355193,3304.8,3304.4,0.45387]
[1642088588037,0.0029835,3304.7,3304.4,0.45387]
[1642088588437,0.00241508,3304.6,3304.4,0.45387]
[1642088588637,0.00241508,3304.6,3304.4,0.90363325]
[1642088588837,0.00184666,3304.5,3304.4,0.90363325]
[1642088589640,0.00184666,3304.5,3304.4,2.41222983]
[1642088590043,0.00184666,3304.5,3304.4,1.95835983]
[1642088590440,0.00184666,3304.5,3304.4,1.50859658]
[1642088591441,0.00184666,3304.5,3304.4,9.658e-05]
[1642088591442,0.43784666,3304.5,3304.4,9.658e-05]
[1642088591698,0.0656845,3304.3,3304.0,0.00099546]
[1642088591898,0.436,3304.2,3304.0,0.00099546]
[1642088592098,6.936,3304.1,3303.9,0.00156389]
[1642088592298,17.27,3304.0,3303.9,0.00156389]
[1642088592502,17.57,3304.0,3303.6,0.00326916]
[1642088592804,6.5,3303.8,3303.3,2.31613514]
[1642088592999,6.5,3303.8,3302.0,6.49521167]
[1642088593000,6.5,3303.6,3302.5,7.41e-05]
[1642088593200,6.51249977,3302.6,3302.5,7.41e-05]
[1642088593399,7.88729977,3302.6,3302.5,7.41e-05]
[1642088593600,25.75729977,3302.6,3302.5,0.00632675]
[1642088593802,26.75729977,3302.6,3302.5,0.00632675]
[1642088594099,28.14329219,3302.6,3302.5,0.00632675]
[1642088594702,17.35275253,3302.4,3301.6,5.13304167]
[1642088594902,0.75735,3302.2,3301.6,5.13304167]
[1642088595102,6.5,3302.0,3301.7,0.07489597]
[1642088595355,3.23520029,3301.9,3301.7,9.597e-05]
[1642088595542,3.23520029,3301.9,3300.8,0.06610683]
[1642088595543,6.5,3301.7,3300.8,0.06610683]
[1642088595742,1.51438536,3301.2,3300.8,0.06610683]
[1642088595941,0.6,3301.2,3300.9,0.00511581]
[1642088596143,2.24529186,3301.1,3300.9,0.00511581]
[1642088596343,1.036,3301.2,3301.0,0.06623271]
[1642088596544,1.036,3301.2,3300.9,0.00511581]
[1642088596545,17.27,3301.1,3300.9,0.00511581]
[1642088596744,6.936,3301.0,3300.7,5.13357462]
[1642088597046,7.536,3301.0,3300.7,2.0419341]
[1642088597246,26.27608979,3301.0,3300.1,2.0419341]
[1642088597643,26.27608979,3301.0,3300.2,0.07532748]
[1642088598045,26.27608979,3301.0,3300.3,0.00852635]
[1642088599089,26.27608979,3301.0,3300.0,0.76767162]
[1642088599291,26.27608979,3301.0,3300.0,0.01023162]
[1642088599491,26.27608979,3301.0,3300.1,0.0096632]
[1642088599691,26.27608979,3301.0,3300.0,0.0765902]
[1642088599890,26.27608979,3301.0,3300.1,0.0096632]
[1642088600092,1.05686833,3300.9,3300.1,0.0096632]
[1642088600294,17.27,3300.7,3300.1,0.0096632]
[1642088600499,6.5,3300.5,3298.8,0.9716696]
[1642088600692,2.68912788,3300.4,3298.8,0.9716696]
[1642088600891,17.27,3300.3,3298.9,0.00682108]
[1642088601193,1.46554638,3299.3,3298.9,0.00682108]
[1642088601394,0.3,3299.3,3298.9,0.07317966]
[1642088601792,0.03197704,3300.1,3299.0,0.76392426]
[1642088601992,0.73713685,3300.3,3299.0,0.00625266]
[1642088602193,2.99026473,3300.3,3299.1,0.07204281]
[1642088602392,0.73713685,3300.3,3299.5,0.55194146]
[1642088602844,0.73713685,3300.3,3299.6,0.00284211]
[1642088603041,17.60764823,3300.4,3299.6,0.00284211]
[1642088603042,4.823e-05,3300.4,3299.6,0.00284211]
[1642088603240,0.436,3301.2,3300.2,0.01259457]
[1642088603540,0.436,3301.2,3300.7,0.50574959]
[1642088603743,0.436,3301.2,3300.3,4.1049]
[1642088604238,2.68912788,3301.2,3300.3,4.1049]
[1642088604439,0.04534443,3301.1,3300.3,4.1049]
[1642088604639,0.736,3301.2,3300.4,0.0045716]
[1642088604640,0.436,3301.2,3300.4,0.0045716]
[1642088604839,0.00397896,3301.0,3300.9,0.7572286]
[1642088605238,0.0073895,3301.6,3300.9,0.7572286]
[1642088605438,0.0073895,3301.6,3301.0,4.5721]
[1642088605642,0.04672632,3301.7,3301.0,4.5721]
[1642088605643,18.49313838,3301.5,3301.0,4.5721]
[1642088605840,17.27682108,3301.5,3301.0,4.5721]
[1642088606040,0.00625266,3301.4,3301.0,4.5721]
[1642088606438,0.00568423,3301.3,3300.9,0.5372844]
[1642088606694,17.27,3301.2,3300.3,4.338]
[1642088606889,17.27511581,3301.2,3300.3,4.338]
[1642088607089,1.44054739,3301.1,3300.3,4.338]
[1642088607492,0.44054739,3301.1,3300.3,4.338]
[1642088607691,17.27,3301.0,3300.3,4.338]
[1642088607897,1.44054739,3301.1,3300.3,4.338]
[1642088607898,0.0359842,3301.1,3300.3,4.338]
[1642088608092,0.1256,3302.3,3300.4,0.01249447]
[1642088608093,0.436,3301.8,3300.4,0.01249447]
[1642088608294,0.00397896,3301.0,3300.4,0.00397896]
[1642088608491,0.00397896,3301.0,3300.6,0.7573372]
[1642088608693,0.00397896,3301.0,3300.8,1.24617092]
[1642088609092,0.00397896,3301.0,3300.9,0.00113685]
[1642088609703,0.00397896,3301.0,3300.8,0.00170527]
[1642088609900,0.00397896,3301.0,3300.4,0.00397897]
[1642088610944,0.00397896,3301.0,3300.6,0.57727121]
[1642088611139,0.00397896,3301.0,3300.8,0.0045716]
[1642088611339,0.00397896,3301.0,3300.7,0.0022737]
[1642088611538,0.00397896,3301.0,3300.9,0.00113685]
[1642088611741,0.00397896,3301.0,3300.7,0.0022737]
[1642088612145,1.0,3302.3,3300.8,0.84879725]
[1642088612343,0.03464265,3302.4,3301.6,1.5141278]
[1642088612541,0.00113685,3302.0,3301.7,0.55478909]
[1642088612740,0.00113685,3302.0,3301.8,4.3628]
[1642088612939,0.436,3303.0,3301.8,4.89267]
[1642088613140,0.436,3303.0,3302.8,0.7569255]
[1642088613341,0.00625266,3302.9,3302.8,0.7569255]
[1642088613740,17.27625266,3302.9,3302.8,0.7569255]
[1642088613941,17.27625266,3302.9,3302.5,1.5138509]
[1642088614190,0.00625266,3302.9,3302.8,0.7569549]
[1642088614388,0.45597636,3303.6,3302.8,0.7569549]
[1642088614389,0.436,3303.4,3302.8,0.7569549]
[1642088614591,0.00625266,3302.9,3302.5,1.5138509]
[1642088614787,0.00625266,3302.9,3302.8,0.49678939]
[1642088614987,0.436,3303.4,3303.0,1.5135948]
[1642088615190,0.436,3303.4,3303.1,0.7567974]
[1642088615390,0.00852635,3303.3,3303.1,0.7567974]
[1642088615789,0.45597636,3303.6,3303.1,1.7567974]
[1642088615989,0.45597636,3303.6,3303.1,1.0]
[1642088616195,0.00170527,3303.5,3303.4,1.5132667]
[1642088616390,0.436,3304.3,3303.4,1.5132667]
[1642088616594,0.436,3304.3,3303.3,2.26983]
[1642088616595,0.00454739,3304.0,3303.3,2.04285]
[1642088616989,0.00227369,3303.9,3303.3,2.04285]
[1642088617389,0.00170527,3303.8,3303.3,2.04285]
[1642088617697,0.00113685,3303.7,3303.6,1.5133233]
[1642088617962,0.00113685,3303.7,3303.5,0.756644]
[1642088618362,0.00113685,3303.7,3303.0,1.0]
[1642088618563,0.00113685,3303.7,3303.3,1.51326]
[1642088618764,0.00113685,3303.7,3303.4,0.75663]
[1642088619261,0.00113685,3303.7,3303.1,0.75895369]
[1642088619262,0.00113685,3303.7,3303.5,0.756644]
[1642088619863,0.76323401,3304.3,3303.5,0.756644]
[1642088620061,0.736,3304.3,3303.5,0.756644]
[1642088620262,0.00170527,3304.0,3303.5,0.756644]
[1642088620462,0.00170527,3304.0,3303.9,0.7566683]
[1642088620664,1.036,3304.3,3303.9,0.7566683]
[1642088620862,17.27,3304.2,3303.5,0.756644]
[1642088621064,17.27,3304.2,3303.4,4.1501]
[1642088621065,17.70884211,3304.2,3303.4,4.1501]
[1642088621262,1.0,3304.1,3303.4,4.1501]
[1642088621468,0.436,3304.0,3303.5,0.00113685]
[1642088621691,18.00770527,3304.0,3303.5,0.00113685]
[1642088621892,0.00113684,3303.9,3303.5,0.00113685]
[1642088622090,0.436,3303.8,3303.0,0.00397897]
[1642088622490,0.736,3303.8,3303.0,0.00397897]
[1642088622692,0.736,3303.8,3303.3,0.756813]
[1642088622891,1.12399031,3303.5,3303.0,0.00397897]
[1642088623094,1.72399031,3303.5,3303.4,0.00170527]
[1642088623294,0.05632752,3303.4,3303.0,0.00397897]
[1642088623492,0.6,3303.5,3303.1,1.5135711]
[1642088623892,0.3,3303.5,3303.2,0.00284212]
[1642088624295,0.77300755,3303.8,3303.2,0.00284212]
[1642088624494,0.3,3303.7,3303.2,0.00284212]
[1642088624993,18.306,3303.8,3303.2,0.00284212]
[1642088625195,0.00113684,3303.9,3303.2,0.00284212]
[1642088625942,0.00113684,3303.9,3303.7,0.75659]
[1642088626143,0.00113684,3303.9,3303.6,0.7566049]
[1642088626444,0.00113684,3303.9,3303.2,0.00284212]
[1642088626645,0.49403932,3303.8,3303.2,0.00284212]
[1642088626842,0.49403932,3303.8,3303.0,0.00397897]
[1642088627041,0.436,3303.8,3303.0,0.00397897]
[1642088627242,0.436,3303.8,3303.1,1.5135736]
[1642088627443,1.48496739,3303.3,3303.0,0.00397897]
[1642088627742,2.08496739,3303.3,3303.0,0.76085297]
[1642088627943,0.6,3303.3,3303.0,0.76085297]
[1642088628141,0.3,3303.3,3303.1,0.00341054]
[1642088628341,0.436,3303.8,3303.1,0.00341054]
[1642088628743,2.3245678,3303.7,3303.1,0.00341054]
[1642088628948,0.736,3303.6,3303.1,0.00341054]
[1642088629199,1.036,3303.6,3303.0,0.00397897]
[1642088629390,0.05188673,3303.4,3303.0,0.00397897]
[1642088629592,0.436,3303.3,3303.0,0.00397897]
[1642088629793,0.33628278,3303.5,3303.0,0.00397897]
[1642088629794,0.436,3303.2,3303.0,0.58866467]
[1642088629994,0.436,3303.2,3303.0,0.00397897]
[1642088630294,0.736,3303.2,3303.0,0.00397897]
[1642088630693,0.736,3303.2,3303.0,0.20397897]
[1642088631093,7.236,3303.2,3303.1,0.00341054]
[1642088631296,0.736,3303.2,3303.1,0.00341054]
[1642088631892,18.006,3303.2,3303.1,0.00341054]
[1642088632293,0.736,3303.2,3303.1,0.00341054]
[1642088633143,5.036,3303.2,3303.1,0.00341054]
[1642088633643,22.306,3303.2,3303.1,0.00341054]
[1642088634046,22.306,3303.2,3302.3,4.34352665]
[1642088634047,6.5,3303.1,3302.3,4.34352665]
[1642088634248,3.12465001,3303.0,3302.3,4.34352665]
[1642088634444,0.3,3302.9,3302.4,0.00397897]
[1642088634648,2.92830107,3302.8,3302.4,0.00397897]
[1642088634847,1.48536527,3302.6,3302.4,0.00397897]
[1642088635048,7.236,3302.5,3302.4,0.00397897]
[1642088635248,9.5792004,3302.5,3302.4,0.00397897]
[1642088635546,17.27,3302.4,3301.5,0.00909478]
[1642088635751,2.96945332,3302.3,3301.5,0.00909478]
[1642088635950,2.96945332,3302.3,3301.2,5.5837695]
[1642088635951,17.27,3302.2,3301.3,0.01023163]
[1642088636156,19.97323681,3302.1,3301.3,4.52013163]
[1642088636352,20.57323681,3302.1,3301.3,4.52013163]
[1642088636591,18.306,3302.1,3301.4,0.0096632]
[1642088636992,18.306,3302.1,3301.5,0.75721]
[1642088637193,18.306,3302.1,3301.4,0.766908]
[1642088637392,18.306,3302.1,3301.6,0.00852636]
[1642088637592,18.306,3302.1,3301.5,0.00909478]
[1642088640094,1.0,3302.0,3301.5,0.00909478]
[1642088640344,0.436,3301.9,3301.4,0.88147109]
[1642088640548,17.27,3301.8,3301.4,0.88147109]
[1642088640745,0.30170527,3301.8,3301.4,0.88147109]
[1642088640947,0.00113685,3301.7,3301.4,0.88147109]
[1642088641145,0.30113685,3301.7,3301.4,0.88147109]
[1642088642048,0.30113685,3301.7,3301.4,0.27527373]
[1642088642448,0.30113685,3301.7,3301.3,4.5099]
[1642088642645,17.57113685,3301.7,3301.3,4.5099]
[1642088642846,0.30113685,3301.7,3301.3,4.5099]
[1642088643146,0.30113685,3301.7,3301.4,0.7572251]
[1642088644706,0.30113685,3301.7,3301.3,5.2671244]
[1642088645308,0.30113685,3301.7,3301.6,0.48477629]
[1642088645508,0.00113685,3301.7,3301.6,0.48477629]
[1642088645907,0.13819997,3302.9,3301.7,5.95]
[1642088646106,0.13819997,3302.9,3302.0,0.75698]
[1642088646307,6.07,3303.3,3301.9,0.52986]
[1642088646308,0.00568423,3302.7,3301.9,0.52986]
[1642088646511,0.00568423,3302.7,3302.3,0.53175618]